Cogmind - Beta 17 @@@ ROGUE MODE // 2026.06.29 @ 18:55:46 // Winter2019/RPGLIKE Player: chai Result: Destroyed by H-66 Slayer with Gauss Rifle Performance ------------- Evolutions (4) 2000 Regions Visited (5) 1000 Robots Destroyed (38) 190 Value Destroyed (967) 967 Prototype IDs (2) 40 Alien Tech Used (0) 0 Bonus (66) 66 TOTAL SCORE: 4263 Bonus ------- Follower Combat Kills 66 Cogmind --------- Core Integrity 0/800 Matter 244/300 Energy 285/290 System Corruption 1% Temperature Cool (0) Movement Rolling (105) Ox1 Location -6/Factory Parts ------- > --- POWER (1) -------- Improved Deuterium Engine > --- PROPULSION (2) --- Armored Leg Compact Wheel > --- UTILITY (6) ------ Improved Heat Sink Structural Scanner Improved Signal Interpreter Targeting Computer Weapon Cycler Improved Light Armor Plating > --- WEAPON (4) ------- Heavy Assault Cannon > --- INVENTORY (0) ---- (None) Peak State ------------ > --- POWER ------------ Improved Deuterium Engine > --- PROPULSION ------- Armored Leg Compact Wheel > --- UTILITY ---------- Structural Scanner Improved Signal Interpreter IFF Parser Targeting Computer Weapon Cycler Improved Light Armor Plating > --- WEAPON ----------- Heavy Assault Cannon Missile Launcher > --- INVENTORY -------- (None) [Rating: 36] Favorites ----------- Power Ion Engine Engine Ion Engine Propulsion Aluminum Leg Leg Aluminum Leg Wheel Compact Wheel Utility Structural Scanner Device Structural Scanner Storage High-capacity Matter Pod Processor Targeting Computer Protection Improved Light Armor Plating Weapon Grenade Launcher Energy Gun Particle Gun Energy Cannon Beam Cannon Ballistic Gun Assault Rifle Ballistic Cannon Heavy Assault Cannon Launcher Grenade Launcher Build | -11 -10 -10 -10 -8 -6 ------- Run | Yrd Mat Min Sub Rec Fac Slots Evolved 9 | 4 . 2 . 1 2 Power . | . . . . . . Propulsion 1 | 1 . . . . . Utility 5 | 2 . 1 . 1 1 Weapon 3 | 1 . 1 . . 1 Parts Attached 36 | 7 4 4 1 12 8 Power 4 | 1 . . . 1 2 Engine 4 | 1 . . . 1 2 Core . | . . . . . . Reactor . | . . . . . . Propulsion 8 | 4 . . . 3 1 Treads . | . . . . . . Leg 5 | 2 . . . 2 1 Wheel 3 | 2 . . . 1 . Hover . | . . . . . . Flight . | . . . . . . Utility 14 | . 2 3 . 4 5 Device 9 | . . 3 . 1 5 Storage 2 | . 2 . . . . Processor 2 | . . . . 2 . Hackware . | . . . . . . Protection 1 | . . . . 1 . Artifact . | . . . . . . Weapon 10 | 2 2 1 1 4 . Energy Gun 1 | . . 1 . . . Energy Cannon 4 | . 1 . 1 2 . Ballistic Gun 2 | 2 . . . . . Ballistic Cannon 1 | . . . . 1 . Launcher 2 | . 1 . . 1 . Special Weapon . | . . . . . . Impact Weapon . | . . . . . . Slashing Weapon . | . . . . . . Piercing Weapon . | . . . . . . Special Melee Weapon . | . . . . . . Unidentified Prototypes . | . . . . . . Corrupted Parts 1 | . 1 . . . . System Corruption 4 | . 4 . . . . Parts Lost 1 | . . . . . 1 Power . | . . . . . . Propulsion . | . . . . . . Utility . | . . . . . . Weapon 1 | . . . . . 1 Highest Loss Streak 1 | . . . . . 1 To Critical Strikes . | . . . . . . Average Backups . | . . . . . . Power . | . . . . . . Propulsion . | . . . . . . Utility . | . . . . . . Weapon . | . . . . . . Tool/Special . | . . . . . . Unused Backups . | . . . . . . Power . | . . . . . . Propulsion . | . . . . . . Utility . | . . . . . . Weapon . | . . . . . . Tool/Special . | . . . . . . Average Slot Usage (%) 93 | . 71 92 99 93 88 Engine 9 | . 12 11 10 9 7 Leg 16 | . 25 24 19 10 7 Wheel 2 | . . . . 6 7 Device 16 | . . 6 20 17 23 Storage 13 | . 9 24 20 6 . Processor 5 | . . . . 12 16 Protection 2 | . . . . 3 7 Energy Gun 4 | . . 1 10 2 . Energy Cannon 8 | . 8 11 9 12 . Ballistic Cannon 1 | . . . . 2 7 Launcher 9 | . 9 11 10 9 7 Peak Build Rating 36 | 5 7 15 14 26 36 Average Rating 17 | 3 5 9 13 19 32 On Entrance 10 | . 5 7 13 13 24 Avg Prop Armor Cover (%) 5 | . . . . 5 4 Naked Turns . | . . . . . . Heaviest Build 37 | 9 19 24 29 35 37 Greatest Support 34 | 32 20 20 20 34 25 Greatest Overweight (x) 2 | 2 . 1 2 2 2 Average Overweight (x) . | . . . 1 1 1 Largest Inventory Capacity . | . . . . . . Average Capacity . | . . . . . . Most Carried . | . . . . . . Average Carried . | . . . . . . Final Capacity . | . . . . . . Final Carried . | . . . . . . Class Distribution -------------------- 61% | Bomber 21% | Mutant 16% | Commander-Bomber Dominant Class ---------------- Mutant | -10/Materials Mutant | -10/Mines Bomber | -10/Subcaves Commander-Bomber | -8/Recycling Bomber | -6/Factory Resources | -11 -10 -10 -10 -8 -6 ----------- Run | Yrd Mat Min Sub Rec Fac Matter Collected 1244 | 270 . 214 210 283 267 Remotely . | . . . . . . Salvage Created 836 | . . 203 174 298 161 Parts 66 | . . 25 15 17 9 Haulers Intercepted . | . . . . . . Recyclers Shooed 1 | . . . . . 1 Parts Field Recycled . | . . . . . . Retrieved Matter . | . . . . . . Parts Self-Destructed 11 | . . . 11 . . Prevented . | . . . . . . Parts Restored . | . . . . . . Kills | -11 -10 -10 -10 -8 -6 ------- Run | Yrd Mat Min Sub Rec Fac Combat Hostiles Destroyed 27 | . . 8 8 6 5 Guns 3 | . . . 1 2 . Cannons 15 | . . 4 3 4 4 AOE 9 | . . 4 4 . 1 Classes Destroyed 11 | . . 5 2 3 1 Worker 2 | . . 2 . . . Builder 2 | . . 1 . . 1 Tunneler 2 | . . 2 . . . Recycler 2 | . . . . 2 . Turret 2 | . . . 2 . . Watcher 1 | . . . . . 1 Swarmer 13 | . . 6 6 1 . Grunt 4 | . . 2 . . 2 Sentry 5 | . . . . 3 2 Programmer 3 | . . . . 2 1 Subdweller 2 | . . . 2 . . Best Kill Streak 6 | . . 4 6 5 2 Combat Bots Only 4 | . . 3 4 4 2 Max Kills in Single Turn 3 | . . 3 3 2 1 Gunslinging . | . . . . . . Exploded 3 | . . 2 3 . 1 Melee . | . . . . . . Uniques/NPCs Destroyed . | . . . . . . Combat | -11 -10 -10 -10 -8 -6 -------- Run | Yrd Mat Min Sub Rec Fac Hostile Shots Fired 214 | . . 16 53 51 94 Missed 89 | . . 7 23 15 44 Hits 125 | . . 9 30 36 50 Projectile 125 | . . 9 30 36 50 Critical Strikes 2 | . . . . 1 1 Part Disruptions 1 | . . . . . 1 Damage Taken 1533 | . 75 79 303 435 641 Core 1178 | . 61 62 242 332 481 Absorbed by Shields 16 | . . . . 16 . Redirected to Core 986 | . 52 45 199 275 415 Core Remaining (%) 72 | 100 . . . 45 . Volleys Fired 83 | . . 21 19 15 28 Largest 3 | . . 2 3 3 1 Hottest 175 | . . 125 175 152 50 Shots Fired 110 | . . 22 33 27 28 Gun 20 | . . 1 12 7 . Cannon 72 | . . 17 12 18 25 Launcher 18 | . . 4 9 2 3 Special . | . . . . . . Kinetic 30 | . . . . 5 25 Thermal 59 | . . 18 24 17 . Explosive 18 | . . 4 9 2 3 Electromagnetic 3 | . . . . 3 . Robot Hit Streak 14 | . . 4 9 14 8 Robot Miss Streak 3 | . . 3 3 3 2 Penetration Max . | . . . . . . Secondary Targets . | . . . . . . Shots Hit Robots 68 | . . 11 18 19 20 Core Hits 53 | . . 14 18 10 11 Critical Kills . | . . . . . . Critical Parts Destroyed . | . . . . . . Critical Strikes 5 | . . . . 1 4 Blast 5 | . . . . 1 4 Melee Attacks . | . . . . . . Impact . | . . . . . . Slashing . | . . . . . . Piercing . | . . . . . . Sneak Attacks . | . . . . . . Combat Hostiles . | . . . . . . Follow-up Attacks . | . . . . . . Damage Inflicted 3005 | . . 468 561 629 1347 Guns 228 | . . 18 109 101 . Cannons 1758 | . . 173 154 496 935 Explosions 1019 | . . 277 298 32 412 Melee . | . . . . . . Ramming . | . . . . . . Kinetic 1189 | . . . . 254 935 Thermal 757 | . . 191 263 303 . Explosive 1019 | . . 277 298 32 412 Electromagnetic 40 | . . . . 40 . Impact . | . . . . . . Slashing . | . . . . . . Piercing . | . . . . . . Highest Corruption 5 | . 4 4 4 5 1 Average Corruption 4 | . 4 4 4 4 1 Corruption Purged . | . . . . . . Corruption Blocked . | . . . . . . Effects 72 | . 1 18 30 23 . Message Errors 15 | . . 5 6 4 . Matter Fused 20 | . . 8 6 6 . Heat Flow Errors 10 | . . 1 5 4 . Energy Discharges 9 | . . 1 4 4 . Parts Rejected 1 | . . . 1 . . Data Loss (minor) 8 | . . 1 4 3 . Data Loss (major) 4 | . 1 1 2 . . Misfires 3 | . . . 2 1 . Alerts 1 | . . 1 . . . Weapon Failures 1 | . . . . 1 . Overload Shots . | . . . . . . Overflow Damage 168 | . . 2 31 24 111 Projectiles 135 | . . . . 24 111 Explosions 33 | . . 2 31 . . Melee . | . . . . . . Knockbacks 5 | . . . . . 5 Impact . | . . . . . . Kinetic 5 | . . . . . 5 Secondary . | . . . . . . Self-Inflicted Damage 22 | . . . 22 . . Shots 2 | . . . 2 . . Rammed . | . . . . . . Targets Rammed . | . . . . . . Kicked . | . . . . . . Crushed . | . . . . . . Highest Temperature 231 | . . 224 231 219 16 Average Temperature 73 | . . 112 95 79 4 Received Heat Transfer 319 | . . 15 111 73 120 Siege Activations . | . . . . . . Martial Activations . | . . . . . . Shielding Activations . | . . . . . . Robots Disrupted . | . . . . . . Combat Hostiles . | . . . . . . Robots Corrupted . | . . . . . . Combat Hostiles . | . . . . . . Parts Fried . | . . . . . . Impact Corruptions . | . . . . . . Robots Melted . | . . . . . . Combat Hostiles . | . . . . . . Parts Melted 1 | . . . 1 . . Heat Transferred 1406 | . . 407 518 481 . Parts Sabotaged . | . . . . . . Parts Stolen . | . . . . . . Parts Stripped . | . . . . . . Power Chain Reactions . | . . . . . . Alert | -11 -10 -10 -10 -8 -6 ------- Run | Yrd Mat Min Sub Rec Fac Maximum Alert Level . | . . . . . . Low Security (%) 100 | 100 100 100 . 100 100 Level 1 . | . . . . . . Level 2 . | . . . . . . Level 3 . | . . . . . . Level 4 . | . . . . . . Level 5 . | . . . . . . High Security . | . . . . . . Max Security . | . . . . . . Peak Influence 133 | . 12 133 . 91 66 Initial 91 | . . . . 91 9 Average 20 | . . 34 . 24 9 Influence Increases 991 | . 20 244 260 232 235 Destroy 0b10 Robot/C 580 | . . 160 160 160 100 Destroy 0b10 Robot/NC 45 | . . 25 . 10 10 Destroy Leader 82 | . . 30 10 . 42 Allied During Kill 17 | . . . . 12 5 Successful Hack 41 | . 20 . . . 21 Disable Machine 45 | . . 15 . 30 . Destroy Structure 61 | . . 14 . 20 27 Lose Combat Pursuer 120 | . . . 90 . 30 Influence Decreases 949 | . 20 170 142 402 215 Entered New Map 153 | . . . 39 101 13 Time Decay 776 | . 20 170 103 301 182 Lost Part 10 | . . . . . 10 Lost Ally 10 | . . . . . 10 Squads Dispatched 4 | . 1 . . . 3 Investigation 1 | . 1 . . . . Extermination 1 | . . . . . 1 Reinforcement 2 | . . . . . 2 Assault . | . . . . . . Garrison . | . . . . . . Intercept . | . . . . . . Searches Triggered . | . . . . . . Construction Impeded . | . . . . . . Haulers Reinforced . | . . . . . . Active Scanning Responses . | . . . . . . Cargo Convoy Interrupts 1 | . . . . . 1 Stealth | -11 -10 -10 -10 -8 -6 --------- Run | Yrd Mat Min Sub Rec Fac Distress Signals 1 | . . . . 1 . Communications Jammed . | . . . . . . Distress Signals . | . . . . . . Times Spotted 45 | . . 7 11 8 19 Peak Tracking Total 9 | . . 3 5 5 9 Tactical Retreats 4 | . . . 2 . 2 Traps | -11 -10 -10 -10 -8 -6 ------- Run | Yrd Mat Min Sub Rec Fac Traps Triggered 1 | . 1 . . . . Indirectly . | . . . . . . Trap Hack Attempts . | . . . . . . Triggered . | . . . . . . Disarmed . | . . . . . . Reprogrammed . | . . . . . . Reused . | . . . . . . Traps Extracted . | . . . . . . Installed . | . . . . . . Triggered . | . . . . . . Machines | -11 -10 -10 -10 -8 -6 ---------- Run | Yrd Mat Min Sub Rec Fac Machines Disabled 6 | . . 1 3 2 . Max in Single Turn 2 | . . 1 2 1 . Machines Repaired . | . . . . . . Machines Dismantled . | . . . . . . Machines Sabotaged . | . . . . . . Overloaded Fab Kills . | . . . . . . Hacking | -11 -10 -10 -10 -8 -6 --------- Run | Yrd Mat Min Sub Rec Fac Machines Accessed 23 | . 2 . 3 12 6 Terminals 12 | . 2 . . 6 4 Fabricators . | . . . . . . Repair Stations . | . . . . . . Recycling Units 6 | . . . . 6 . Scanalyzers 2 | . . . . . 2 Garrison Access . | . . . . . . Total Hacks 52 | . 5 . 6 28 13 Successful 33 | . 4 . 6 15 8 Failed 18 | . 1 . . 13 4 Catastrophic 4 | . 1 . . 2 1 Database Lockouts 1 | . . . . . 1 Manual . | . . . . . . Terminals 32 | . 5 . . 17 10 Fabricators . | . . . . . . Repair Stations . | . . . . . . Recycling Units 11 | . . . . 11 . Scanalyzers 3 | . . . . . 3 Garrison Access . | . . . . . . Terminal Hacks 24 | . 4 . 6 7 7 Record 8 | . . . 4 3 1 Prototype ID Bank 1 | . . . . . 1 Open Door 1 | . . . 1 . . Open DSF 2 | . . . . . 2 Level Access Points 1 | . 1 . . . . Emergency Access Points 2 | . . . . 1 1 Alert Level 2 | . . . . 1 1 Dispatch Records 1 | . . . . . 1 Maintenance Status 1 | . . . . 1 . Patrol Status 1 | . 1 . . . . Transport Status 1 | . 1 . . . . Investigation Status 1 | . . . . 1 . Hauler Manifests 1 | . 1 . . . . Release Object 1 | . . . 1 . . Fabricator Hacks . | . . . . . . Repair Station Hacks . | . . . . . . Recycling Unit Hacks 8 | . . . . 8 . Report Inventory 6 | . . . . 6 . Retrieve Components 2 | . . . . 2 . Scanalyzer 1 | . . . . . 1 Retrieve Study 1 | . . . . . 1 Garrison Access Hacks . | . . . . . . Unauthorized Hacks . | . . . . . . Terminals . | . . . . . . Fabricators . | . . . . . . Repair Stations . | . . . . . . Recycling Units . | . . . . . . Scanalyzers . | . . . . . . Garrison Access . | . . . . . . Data Cores Recovered . | . . . . . . Used . | . . . . . . Hacking Detections 9 | . 1 . . 5 3 Full Trace Events 1 | . 1 . . . . Feedback Events . | . . . . . . Feedback Blocked . | . . . . . . Robot Schematics Acquired . | . . . . . . Robots Built . | . . . . . . Authchips . | . . . . . . Time . | . . . . . . Total Robot Build Rating . | . . . . . . Part Schematics Acquired . | . . . . . . Parts Built . | . . . . . . Authchips . | . . . . . . Time . | . . . . . . Total Part Build Rating . | . . . . . . Part Studies Acquired 1 | . . . . . 1 Parts Repaired . | . . . . . . Time . | . . . . . . Parts Recycled . | . . . . . . Recycled Matter . | . . . . . . Retrieved Matter . | . . . . . . Retrieved Components 6 | . . . . 6 . Parts Scanalyzed . | . . . . . . Part Schematics Acquired . | . . . . . . Parts Damaged . | . . . . . . Bothacking | -11 -10 -10 -10 -8 -6 ------------ Run | Yrd Mat Min Sub Rec Fac Used RIF Installer . | . . . . . . Robots Hacked . | . . . . . . Non-combat . | . . . . . . Combat . | . . . . . . Robot Hacks Applied . | . . . . . . Relay Couplers Released . | . . . . . . Fabnet Peak Effective % . | . . . . . . Robots Rewired 5 | . . . . 5 . Allies Hacked 1 | . . . . . 1 Hacks Repelled . | . . . . . . Allies | -11 -10 -10 -10 -8 -6 -------- Run | Yrd Mat Min Sub Rec Fac Total Allies 5 | . . . . 5 . Largest Group 5 | . . . . 5 3 Highest-Rated Group 78 | . . . . 78 44 Highest-Rated Ally 27 | . . . . 27 18 Total Orders . | . . . . . . Ally Attacks 13 | . . . . 6 7 Total Damage 141 | . . . . 79 62 Kills 2 | . . . . 2 . Allies Corrupted . | . . . . . . Allies Melted . | . . . . . . Intel | -11 -10 -10 -10 -8 -6 ------- Run | Yrd Mat Min Sub Rec Fac Active Infowar (turns) 3829 | . . 342 1635 1025 827 IFF 524 | . . . . . 524 Terrain 250 | . . 250 . . . Structural 3579 | . . 92 1635 1025 827 Robot Analysis Total . | . . . . . . Derelict Logs Recovered 3 | . . 1 2 . . Drone Launches . | . . . . . . Drone Recoveries . | . . . . . . Exploration | -11 -10 -10 -10 -8 -6 ------------- Run | Yrd Mat Min Sub Rec Fac Turns Passed 4546 | 59 235 765 1635 1025 827 Spaces Moved 2777 | 44 184 546 819 693 491 Core 4 | 4 . . . . . Treads . | . . . . . . Legs 1806 | 21 184 546 819 121 115 Wheels 967 | 19 . . . 572 376 Hover . | . . . . . . Flight . | . . . . . . Fastest Speed 50 | 50 120 120 190 115 105 Average Speed 150 | 109 120 128 192 130 148 Slowest Speed 260 | 150 120 190 260 260 260 Overloaded Moves . | . . . . . . Propulsion Burnouts . | . . . . . . Robots Hopped . | . . . . . . Potential Cave-ins . | . . . . . . Cave-ins Triggered . | . . . . . . Exploration Rate (%) 48 | 3 37 89 55 96 13 Regions Visited 5 Branch Regions 3 Pre-discovered Areas 2 | . . . 2 . . Known Exits Taken 1 | . . . . 1 . Unknown Exits Taken 4 | 1 1 1 1 . . Scrap Searched 2 | . . . 2 . . Spaces Dug . | . . . . . . Terrain Destroyed 103 | . . 14 33 22 34 Melee . | . . . . . . Projectile 15 | . . . 2 2 11 AOE 88 | . . 14 31 20 23 Terrain Rammed . | . . . . . . Walls Destroyed . | . . . . . . Machines Disabled . | . . . . . . Actions | -11 -10 -10 -10 -8 -6 --------- Run | Yrd Mat Min Sub Rec Fac Total 3023 | 52 197 584 846 783 561 Wait 73 | . 8 6 6 25 28 Move 2772 | 43 183 545 818 692 491 Hop . | . . . . . . Pick Up . | . . . . . . Fast Attach 34 | 7 4 4 1 12 6 Attach . | . . . . . . Detach . | . . . . . . Swap 3 | . . . . 1 2 Drop 25 | 2 2 1 1 13 6 Fire 83 | . . 21 19 15 28 Melee . | . . . . . . Ram . | . . . . . . Kick . | . . . . . . Crush . | . . . . . . Escape Stasis . | . . . . . . Rewire 14 | . . . . 14 . Trap . | . . . . . . Miscellaneous 19 | . . 7 1 11 . Route ------- -11/Scrapyard -10/Materials (discovered 4 exits: Mat x3 / [*Min]) -10/Mines (discovered 2 exits: *Mat / *Sub) -10/Subcaves (discovered 3 exits: [*Mat x2] / *Rec) -8/Recycling -6/Factory (discovered 2 exits: *Fac / *Low) History --------- Turn | Location | Event 14 | -11/Scrapyard | Discovered new exit (range 15) 15 | -11/Scrapyard | Upgraded with Propulsion slot (x1) 15 | -11/Scrapyard | Upgraded with Utility slot (x2) 15 | -11/Scrapyard | Upgraded with Weapon slot (x1) 60 | -11/Scrapyard | Entered Materials 208 | -10/Materials | Discovered new exit (range 17) 263 | -10/Materials | Identified exit to Materials 295 | -10/Materials | Entered Mines 311 | -10/Mines | Build established: Mutant 894 | -10/Mines | Reached level 2 900 | -10/Mines | Upgraded with Weapon slot (x1) 905 | -10/Mines | Discovered exit to Materials (range 7) 915 | -10/Mines | Upgraded with Utility slot (x1) 1042 | -10/Mines | Discovered new exit (range 5) 1060 | -10/Mines | Entered Subcaves 1061 | -10/Subcaves | Approached by a straggling Scientist 1074 | -10/Subcaves | Learned location of Zion (-6) 1074 | -10/Subcaves | Met a Zionite searching for "candidates" 1076 | -10/Subcaves | Discovered new exit (range 13) 1217 | -10/Subcaves | Build established: Bomber 1556 | -10/Subcaves | Learned location of Storage (-8) 1607 | -10/Subcaves | Released subatomizers from SUBCON Basin 1718 | -10/Subcaves | Discovered new exit (range 16) 1835 | -10/Subcaves | Shifting Twisted Machinery released Sub. Beam Cannon 1852 | -10/Subcaves | Shifting Twisted Machinery released Riot Gun 1937 | -10/Subcaves | Shifting Twisted Machinery released Sub. Shrapnel Launcher 2098 | -10/Subcaves | Learned Materials stockpile data 2140 | -10/Subcaves | Visited Clippyterm 2146 | -10/Subcaves | Learned Factory trap positions 2591 | -10/Subcaves | Reached level 3 2595 | -10/Subcaves | Discovered new exit (range 13) 2695 | -10/Subcaves | Entered Recycling 2887 | -8/Recycling | Core integrity fell below 50% 2910 | -8/Recycling | Reached level 4 2920 | -8/Recycling | Core integrity fell below 20% 3254 | -8/Recycling | Build established: Commander-Bomber 3287 | -8/Recycling | Upgraded with Utility slot (x1) 3699 | -8/Recycling | Discovered new exit (range 17) 3719 | -8/Recycling | Identified exit to Factory 3720 | -8/Recycling | Entered Factory 3720 | -6/Factory | Accompanied by 3 allies 3721 | -6/Factory | Loaded intel: 114 trap records 3721 | -6/Factory | Core integrity fell below 50% 3722 | -6/Factory | Reached level 5 3769 | -6/Factory | Discovered new exit (range 17) 3807 | -6/Factory | Upgraded with Utility slot (x1) 3830 | -6/Factory | Identified exit to Lower Caves 4022 | -6/Factory | Build established: Bomber 4119 | -6/Factory | Central database locked down 4417 | -6/Factory | Discovered new exit (range 15) 4440 | -6/Factory | Core integrity fell below 20% 4445 | -6/Factory | Reached level 6 4447 | -6/Factory | Upgraded with Weapon slot (x1) 4470 | -6/Factory | Identified exit to Factory 4522 | -6/Factory | Cargo convoy interrupted 4547 | -6/Factory | Destroyed by H-66 Slayer with Gauss Rifle Last Messages --------------- 04521_ K-01 Serf collects debris. 04522_ ALERT: Cargo convoy interrupted, initiating access lockdown. 04534_ Slug penetrates P-60 Hacker. 04534_ Destroyed Shock Rifle. 04534_ P-60 Hacker suffers critical hit (Blast). 04534_ Destroyed Imp. Heat Sink. 04534_ P-60 Hacker knocked back. 04536_ Destroyed Gravmag System. 04536_ P-60 Hacker knocked back. 04538_ Slug penetrates P-60 Hacker. 04538_ Destroyed Gravmag System. 04538_ P-60 Hacker knocked back. 04540_ Slug penetrates P-60 Hacker. 04540_ P-60 Hacker destroyed. 04544_ Slug penetrates Wall. 04545_ Destroyed Shock Rifle. 04545_ P-60 Hacker knocked back. 04546_ U-05 Engineer builds a Wall. 04547_ Slug penetrates Wall. Map ----- +----------------------------------------------------+ | ########### # ???????????????????????????????? | | ########### # ???????????????????????????????? | | # # ?????????????????????? | | " " "" # ###+########?????????????????????? | | " " """ # ^ ????????????????????? | | " " S" # ????????????????????? | | " " """ # ????????????????????? | | " " """ + ????????????????????? | | " " # ????????????????????? | | " " ! # #############??????????^^????????? | | " " # # ####????????????????????? | | " " # # """ ##??????????????????????? | | ! # # """ ##????????????^^????????? | | ] # # """ ##????????????^^????????? | | ########### + ##??????????????????????? | | ########### # ! ##??????????????????????? | | ??######### # ##??????????????????????? | | ??######### # ""T"" ##??????????????????????? | | ??## # """"" ##### ??????????????????? | | ??## ###############??????????????????? | | ??## ####### ! ##??????????????????? | | ??## ##???## ##??????????????????? | | #### ####?## ##??????????????????? | | #### ####/######?## %####????????????????? | | ** # # ##?## %!####????????????????? | | * # # ##?##! @ u# ##????????????????? | | # # ##?#####xx#####????????????????? | | # # ###### ^ p ##### ??????????? | | + +%" %###### ##########??????????? | | # #" /%% u ?????? | | # # % ###### ###########?????????? | | # # ###### ###########?????????? | | # # ##??#### ####??????????????????? | | #### ###########??#### ####??????????????????? | | #### # ????## ##????????????????????? | | ??## # ??????????? ### #######???????????????? | | ?? # # ??????????? ###/#######???????????????? | | ?? # # ??????????? #[ ##???????????????? | | ?? # # ??????????? # ! ##???????????????? | | ?? # # ??????????? # ##???????????????? | | ?? # # ??????????? #"""" ##???????????????? | | ?? / # ??????????? #"""" ##???????????????? | | ?? # # ??????????? #"""" #####????????????? | | ?? # # ??????????? #"""" ##### ???? | | ?? # # ?? # ##############???? | | ???????????#+#######??## ! /%%! # ???? | | ????^???? ##+######## ######## # ???? | | ????????? ######## ### # # ???? | | ??????????????""" """ ###### # # ?????? | | ????????????????" """ ###### # # ?????? | +----------------------------------------------------+ Best States ------------- Heat Dissipation 73 Energy Generation 16 Energy Capacity 500 Matter Stores 500 Matter Capacity 500 Sight Range 18 Terrain Scan Range 16 Terrain Scan Density 10 Additional Mass Support 9 Armor Coverage 150 Weapon Cycling 15 Evasion (%) 55 Targeting Accuracy 5 Item Schematics ----------------- None Robot Schematics ------------------ None Fabricated ------------ Nothing Repaired ---------- Nothing Studied --------- Com. Wheel | -6/Factory | Hacked Alien Tech Used ----------------- None Achievements -------------- A Problem For Future Me Challenges ------------ None RPGLIKE | -11 -10 -10 -10 -8 -6 --------- Run | Yrd Mat Min Sub Rec Fac Levels Raised 5 | . . 1 1 1 2 XP Earned 10692 | 3000 75 1525 1850 1982 2260 XP Spent 9480 | 2520 . 1900 . 1400 3660 Upgrades 18 | 7 . 2 . 1 8 Propulsion Slot 1 | 1 . . . . . Utility Slot 5 | 2 . 1 . 1 1 Weapon Slot 3 | 1 . 1 . . 1 Core Integrity 4 | . . . . . 4 Heat Dissipation 2 | 2 . . . . . Sight Range 2 | 1 . . . . 1 Ranged Accuracy 1 | . . . . . 1 Protomatter Created 237 | . . 52 7 138 40 Integrity Restored 379 | . . 133 . 246 . Core 369 | . . 123 . 246 . Parts 10 | . . 10 . . . Protomatter Decayed 29 | . . . 29 . . Game ------ Seed ThiefTripodCalibrator Manual? 0 Play Time 00:55:17 Cumulative 37.6 hours Start 2026.06.29 @ 17:03:33 End 2026.06.29 @ 18:55:46 Sessions 1 Manual Loads 0 Difficulty Rogue Special Mode Winter2019/RPGLIKE Game No. 25 Rogue 25 Adventurer 0 Explorer 0 Win Type - Total 0 Types 0/0/0/0/0/0/0/0/0/0 Lore% 33 Gallery% 23 Achievement% 20 Wizard Run 0 Options --------- Layout 2 ASCII 0 Keyboard 0 Movement Numpad Keybinds 0 Fullscreen 1 Font 24/Smallcaps Map View 50x44 Zoom Use 0% Tactical HUD 1 Map Filters NONE Filters NONE Steam 1 RUN: 0460453b-2b2f-4615-8498-41e452b1a299